bitfinex/quotes_BTCUSD_20240911
["timestamp","ask_amount","ask_price","bid_price","bid_amount"]
[1726066417791,0.05724889,55767.0,55766.0,2.30598555]
[1726066418045,0.05624889,55767.0,55766.0,2.29998555]
[1726066418303,0.05624889,55767.0,55766.0,2.123816]
[1726066418548,0.05724889,55767.0,55766.0,2.129816]
[1726066419238,0.05724889,55767.0,55766.0,2.488457]
[1726066419472,0.05724889,55767.0,55766.0,2.129816]
[1726066419709,0.05724889,55767.0,55766.0,2.123816]
[1726066419710,0.05624889,55767.0,55766.0,2.123816]
[1726066419955,0.05624889,55767.0,55766.0,2.1742837]
[1726066420186,0.05724889,55767.0,55766.0,2.129816]
[1726066421125,0.05624889,55767.0,55766.0,2.123816]
[1726066421370,0.05624889,55767.0,55766.0,2.29998555]
[1726066421608,0.05724889,55767.0,55766.0,2.30598555]
[1726066421848,0.05724889,55767.0,55766.0,2.66462655]
[1726066422104,0.05724889,55767.0,55766.0,2.30598555]
[1726066422322,0.05724889,55767.0,55766.0,2.66462655]
[1726066424227,0.05724889,55767.0,55766.0,2.30598555]
[1726066426304,0.01789027,55767.0,55766.0,2.30598555]
[1726066428172,0.01789027,55767.0,55766.0,2.66462655]
[1726066428173,0.0098177,55767.0,55766.0,2.66462655]
[1726066428421,0.001,55767.0,55766.0,2.66462655]
[1726066428683,0.02911424,55767.0,55766.0,2.30598555]
[1726066429606,0.0032387,55781.0,55780.0,1.283928]
[1726066429831,0.0032387,55781.0,55780.0,1.1220798]
[1726066430064,0.0032387,55781.0,55780.0,1.4806308]
[1726066430315,0.0032387,55781.0,55780.0,1.1220798]
[1726066430640,0.0032387,55781.0,55780.0,1.4806308]
[1726066430772,0.0032387,55781.0,55780.0,1.1240798]
[1726066430994,0.0042387,55781.0,55780.0,1.1640798]
[1726066431216,0.0042387,55781.0,55780.0,1.5226308]
[1726066431443,0.0042387,55781.0,55780.0,1.1640798]
[1726066431665,0.0042387,55781.0,55780.0,1.5226308]
[1726066431914,0.0042387,55781.0,55780.0,1.1640798]
[1726066432147,0.0042387,55781.0,55780.0,1.5226308]
[1726066432370,0.0042387,55781.0,55780.0,1.1640798]
[1726066432605,0.0032387,55781.0,55780.0,1.5166308]
[1726066433075,0.0042387,55781.0,55780.0,1.7155308]
[1726066433295,0.0042387,55781.0,55780.0,2.14176118]
[1726066433510,0.0042387,55781.0,55780.0,2.13576118]
[1726066433511,0.0032387,55781.0,55780.0,2.13576118]
[1726066433725,0.0042387,55781.0,55780.0,2.14376118]
[1726066434384,0.0032387,55781.0,55780.0,2.13576118]
[1726066434608,0.0042387,55781.0,55780.0,2.14376118]
[1726066434831,0.03234869,55781.0,55780.0,2.50231218]
[1726066435083,0.000816,55793.0,55791.0,1.77368]
[1726066435339,0.000816,55793.0,55791.0,2.34009038]
[1726066436515,0.000816,55793.0,55792.0,2.109233]
[1726066437240,0.000816,55793.0,55792.0,1.392285]
[1726066437487,0.000816,55793.0,55792.0,1.750759]
[1726066437736,0.000816,55793.0,55792.0,1.9265349]
[1726066437980,0.000816,55793.0,55792.0,2.2850089]
[1726066437981,0.02891904,55793.0,55792.0,2.2850089]
[1726066439371,0.02891904,55793.0,55792.0,2.2990089]
[1726066439625,0.02891904,55793.0,55792.0,1.9405349]
[1726066439850,0.02891904,55793.0,55792.0,1.9035349]
[1726066440338,0.02891904,55793.0,55792.0,1.4990609]
[1726066440584,0.02891904,55793.0,55792.0,1.9175349]
[1726066441058,0.02891904,55793.0,55792.0,1.9405349]
[1726066441515,0.02891904,55793.0,55792.0,1.5220609]
[1726066441744,0.02891904,55793.0,55792.0,1.4046609]
[1726066442660,0.02891904,55793.0,55792.0,1.7651349]
[1726066443150,0.02891904,55793.0,55792.0,1.7881349]
[1726066443487,0.02891904,55793.0,55792.0,2.3049089]
[1726066443886,0.0004,55800.0,55799.0,0.268214]
[1726066444096,0.0004,55800.0,55799.0,1.99645278]
[1726066444306,0.0004,55800.0,55799.0,2.35488178]
[1726066444483,0.0004,55800.0,55799.0,2.35688178]
[1726066445528,0.0004,55800.0,55799.0,2.37733719]
[1726066446015,0.0014,55800.0,55799.0,2.39852219]
[1726066446452,0.0024227,55804.0,55799.0,2.39852219]
[1726066446453,0.0024227,55804.0,55803.0,1.703813]
[1726066446683,0.0021166,55808.0,55803.0,1.703813]
[1726066446684,0.0021166,55808.0,55807.0,0.651565]
[1726066446883,0.0021166,55808.0,55807.0,2.36258179]
[1726066447087,0.0021166,55808.0,55807.0,2.72095879]
[1726066447318,0.000816,55814.0,55813.0,1.059008]
[1726066447537,0.000816,55814.0,55813.0,2.00407179]
[1726066447730,0.000816,55814.0,55813.0,2.53858034]
[1726066447936,0.000816,55814.0,55813.0,1.95185555]
[1726066448278,0.000816,55814.0,55813.0,2.18024134]
[1726066448683,0.000816,55814.0,55813.0,2.53858034]
[1726066448929,0.000816,55821.0,55815.0,0.628489]
[1726066449140,0.000816,55821.0,55817.0,1.21516779]
[1726066449356,0.000816,55821.0,55817.0,1.23816779]
[1726066449537,0.000816,55821.0,55817.0,1.95479379]
[1726066449755,0.000816,55821.0,55819.0,0.091]
[1726066449969,0.1998,55845.0,55819.0,0.091]
[1726066449970,0.1538,55851.0,55829.0,0.447236]
[1726066450157,0.1538,55851.0,55836.0,0.986477]
[1726066450509,0.1538,55851.0,55829.0,0.65438397]
[1726066450510,0.1998,55854.0,55829.0,0.06776218]
[1726066450511,0.001,55847.0,55829.0,0.06776218]
[1726066450743,0.1652,55834.0,55829.0,0.03]
[1726066450970,0.1652,55834.0,55824.0,0.059]
[1726066450971,0.1652,55834.0,55824.0,0.029]
[1726066451237,0.1652,55834.0,55824.0,0.358267]
[1726066451453,0.1652,55834.0,55821.0,0.358287]
[1726066451666,0.1652,55834.0,55828.0,0.358237]
[1726066451886,0.1652,55834.0,55829.0,0.0387237]
[1726066452114,0.1652,55834.0,55822.0,0.029]
[1726066452335,0.1652,55834.0,55822.0,0.208139]
[1726066452336,0.1662,55834.0,55822.0,0.208139]
[1726066452557,0.1662,55834.0,55823.0,0.179136]
[1726066452558,0.167016,55834.0,55823.0,0.179136]
[1726066452775,0.02809017,55832.0,55823.0,0.179135]
[1726066453210,0.02809017,55832.0,55822.0,0.029]
[1726066453423,0.02809017,55832.0,55824.0,0.179134]
[1726066453669,0.02809017,55832.0,55825.0,0.179131]
[1726066453902,0.02809017,55832.0,55824.0,0.202133]
[1726066454113,0.02809017,55832.0,55824.0,0.202132]
[1726066454328,0.02809017,55832.0,55825.0,0.17913]
[1726066454559,0.02809017,55832.0,55827.0,0.023]
[1726066455018,0.02809017,55832.0,55831.0,0.918557]
[1726066455665,0.02809017,55832.0,55831.0,1.30578]
[1726066456339,0.02809017,55832.0,55831.0,0.918557]
[1726066456569,0.02809017,55832.0,55829.0,0.358235]
[1726066456798,0.02809017,55832.0,55831.0,0.560334]
[1726066457024,0.02809017,55832.0,55830.0,0.179113]
[1726066457248,0.02809017,55832.0,55831.0,0.023]
[1726066457465,0.02809017,55832.0,55831.0,0.202111]
[1726066457698,0.02809017,55832.0,55831.0,0.9914917]
[1726066457699,0.02909017,55832.0,55831.0,0.9914917]
[1726066457928,0.02909017,55832.0,55831.0,0.6332687]
[1726066458174,0.02809017,55832.0,55831.0,0.0819347]
[1726066458383,0.02809017,55832.0,55827.0,0.358247]
[1726066458603,0.02809017,55832.0,55831.0,0.023]
[1726066459343,0.02809017,55832.0,55831.0,0.560334]
[1726066459590,0.02809017,55832.0,55831.0,0.9745904]
[1726066459817,0.02809017,55832.0,55831.0,1.3758134]
[1726066459818,0.02909017,55832.0,55831.0,1.3758134]
[1726066460039,0.02909017,55832.0,55831.0,1.5813134]
[1726066460259,0.02809017,55832.0,55831.0,1.5693134]
[1726066460482,0.02909017,55832.0,55831.0,1.5833134]
[1726066460708,0.02909017,55832.0,55831.0,1.7366134]
[1726066460935,0.000816,55834.0,55833.0,1.282738]
[1726066461163,0.000816,55834.0,55833.0,1.89911855]
[1726066461437,0.000816,55837.0,55836.0,1.343668]
[1726066461660,0.000816,55837.0,55836.0,1.68064987]
[1726066461880,0.000816,55837.0,55836.0,2.03884087]
[1726066462817,0.000816,55837.0,55836.0,2.39703187]
[1726066463040,0.000816,55837.0,55836.0,2.94000142]
[1726066463268,0.0024697,55838.0,55837.0,1.366647]
[1726066463491,0.0024697,55838.0,55837.0,1.931132]
[1726066464162,0.0024697,55838.0,55837.0,2.289317]
[1726066464355,0.0024697,55838.0,55837.0,2.449817]
[1726066464605,0.0024697,55838.0,55837.0,2.62598655]
[1726066464824,0.0024697,55838.0,55837.0,2.63998655]
[1726066465049,0.000816,55848.0,55847.0,2.03150487]
[1726066465484,0.000816,55848.0,55847.0,2.38962587]
[1726066466404,0.000816,55848.0,55847.0,2.74774687]
[1726066466646,0.000816,55848.0,55847.0,2.93547924]
[1726066466877,0.2018,55874.0,55847.0,2.93547924]
[1726066466878,0.45676914,55875.0,55874.0,0.023]
[1726066467298,0.001,55881.0,55873.0,0.357953]
[1726066467517,0.001,55881.0,55874.0,0.178973]
[1726066467736,0.001,55881.0,55874.0,0.023]
[1726066467955,0.001,55881.0,55872.0,0.20198]
[1726066468182,0.001,55881.0,55875.0,0.023]
[1726066468406,0.358,55866.0,55851.0,0.358092]
[1726066468632,0.1562,55860.0,55851.0,0.029]
[1726066468850,0.1562,55860.0,55852.0,0.0387114]
[1726066469342,0.001,55856.0,55851.0,0.05309864]
[1726066469571,0.1562,55852.0,55851.0,0.05309864]
[1726066469794,0.1572,55852.0,55851.0,0.05309864]
[1726066470701,0.001,55845.0,55831.0,0.4795]
[1726066470925,0.001,55843.0,55833.0,0.35821]
[1726066471146,0.001,55843.0,55832.0,0.426613]
[1726066471389,0.001,55843.0,55832.0,0.247507]
[1726066471597,0.52098187,55834.0,55823.0,0.179137]
[1726066471827,0.206,55834.0,55821.0,0.029]
[1726066472064,0.001,55833.0,55822.0,0.041994]
[1726066472294,0.001,55833.0,55827.0,0.179123]
[1726066472514,0.001,55833.0,55828.0,0.17912]
[1726066472745,0.001,55833.0,55822.0,0.041994]
[1726066472973,0.001,55833.0,55826.0,0.179125]
[1726066473201,0.001,55833.0,55827.0,0.179123]
[1726066473424,0.001,55829.0,55819.0,0.358298]
[1726066473635,0.001,55829.0,55818.0,0.003651]
[1726066473874,0.001,55827.0,55818.0,0.003651]
[1726066474113,0.001,55827.0,55819.0,0.179149]
[1726066474372,0.001,55827.0,55820.0,0.358294]
[1726066474550,0.001,55827.0,55822.0,0.179139]
[1726066474748,0.001,55827.0,55819.0,0.358296]
[1726066474970,0.001,55827.0,55818.0,0.003651]
[1726066474971,0.001,55825.0,55818.0,0.003651]
[1726066475215,0.001,55823.0,55818.0,0.003651]
[1726066475431,0.001,55823.0,55819.0,0.006]
[1726066476753,0.001,55823.0,55820.0,0.179145]
[1726066476966,0.001,55823.0,55819.0,0.023]
[1726066477176,0.001,55827.0,55821.0,0.023]
[1726066477177,0.002,55827.0,55821.0,0.023]
[1726066477389,0.001,55827.0,55826.0,0.023]
[1726066478270,0.1519,55828.0,55827.0,0.358249]
[1726066478480,0.1519,55828.0,55827.0,0.179124]
[1726066478717,0.000815,55832.0,55831.0,0.537334]
[1726066478942,0.000815,55832.0,55831.0,0.560334]
[1726066479425,0.000815,55832.0,55831.0,1.264157]
[1726066479859,0.002,55844.0,55839.0,0.023]
[1726066480286,0.002,55844.0,55840.0,0.17908]
[1726066480498,0.002,55844.0,55838.0,0.358177]
[1726066480499,0.02808453,55843.0,55841.0,0.0537257]
[1726066480728,0.02808453,55843.0,55839.0,0.179085]
[1726066480941,0.002,55844.0,55841.0,0.179077]
[1726066481155,0.002,55844.0,55840.0,0.023]
[1726066481391,0.002,55844.0,55840.0,0.179082]
[1726066481609,0.2041,55838.0,55828.0,0.023]
[1726066482098,0.2041,55838.0,55837.0,0.179092]
[1726066482099,0.1512,55848.0,55835.0,0.023]
[1726066482315,0.1512,55848.0,55847.0,0.17906]
[1726066482550,0.1512,55848.0,55847.0,0.023]
[1726066482777,0.1512,55848.0,55847.0,0.0790212]
[1726066482995,0.1512,55848.0,55847.0,0.2580812]
[1726066483237,0.1512,55848.0,55847.0,0.6162022]
[1726066483459,0.43670961,55874.0,55852.0,0.023]
[1726066483460,0.1548,55853.0,55852.0,0.023]
[1726066483688,0.1548,55853.0,55844.0,0.023]
[1726066483935,0.18287952,55853.0,55832.0,0.3532]
[1726066484181,0.18287952,55853.0,55838.0,0.023]
[1726066484182,0.179054,55849.0,55838.0,0.023]
[1726066484403,0.31398187,55850.0,55838.0,0.023]
[1726066484631,0.31398187,55850.0,55840.0,0.023]
[1726066484851,0.18287952,55853.0,55844.0,0.179067]
[1726066485067,0.18287952,55853.0,55840.0,0.023]
[1726066485289,0.18287952,55853.0,55850.0,0.179049]
[1726066485532,0.18287952,55853.0,55849.0,0.023]
[1726066485769,0.18287952,55853.0,55844.0,0.179068]
[1726066486018,0.18287952,55853.0,55844.0,0.0560219]
[1726066486253,0.00447631,55852.0,55840.0,0.023]
[1726066486485,0.49686139,55853.0,55843.0,0.179073]
[1726066486726,0.49686139,55853.0,55841.0,0.358158]
[1726066486965,0.49686139,55853.0,55840.0,0.029]
[1726066486966,0.18287952,55853.0,55849.0,0.179053]
[1726066487215,0.18287952,55853.0,55846.0,0.023]
[1726066487444,0.18287952,55853.0,55840.0,0.008]
[1726066487445,0.18287952,55853.0,55852.0,0.179044]
[1726066487668,0.02807952,55853.0,55852.0,0.918222]
[1726066487899,0.02807952,55853.0,55852.0,1.0458547]
[1726066489268,0.02807952,55853.0,55852.0,1.0538547]
[1726066489490,0.02807952,55853.0,55852.0,0.6957657]
[1726066489752,0.02807952,55853.0,55852.0,0.560133]
[1726066490188,0.02807952,55853.0,55852.0,0.918222]
[1726066490647,0.02807952,55853.0,55852.0,0.023]
[1726066490873,0.31398187,55861.0,55845.0,0.1968]
[1726066490874,0.31398187,55861.0,55848.0,0.023]
[1726066491101,0.31398187,55861.0,55849.0,0.02428]
[1726066491330,0.524024,55863.0,55849.0,0.02428]
[1726066491331,0.166,55863.0,55853.0,0.17904]
[1726066491555,0.166,55863.0,55852.0,0.014]
[1726066491780,0.166,55863.0,55851.0,0.358094]
[1726066492000,0.166,55863.0,55854.0,0.179037]
[1726066492233,0.166,55863.0,55852.0,0.0740474]
[1726066492453,0.345009,55863.0,55852.0,0.0740474]
[1726066492670,0.345009,55863.0,55852.0,0.2530904]
[1726066493107,0.166,55863.0,55852.0,0.2530904]
[1726066493326,0.166,55863.0,55852.0,0.0740474]
[1726066493566,0.166,55863.0,55853.0,0.00983274]
[1726066494699,0.166,55863.0,55854.0,0.358075]
[1726066494965,0.166,55863.0,55856.0,0.358063]
[1726066495203,0.166,55863.0,55853.0,0.00983274]
[1726066495420,0.179016,55861.0,55852.0,0.002]
[1726066495640,0.179019,55860.0,55852.0,0.002]
[1726066495859,0.31398187,55862.0,55850.0,0.17905]
[1726066496090,0.179016,55861.0,55854.0,0.007]
[1726066496314,0.02807804,55859.0,55854.0,0.007]
[1726066496532,0.02807804,55859.0,55851.0,0.179047]
[1726066497212,0.02807804,55859.0,55848.0,0.358111]
[1726066497213,0.02807804,55859.0,55858.0,0.179025]
[1726066497510,0.02807804,55859.0,55857.0,0.179028]
[1726066497732,0.02807804,55859.0,55853.0,0.023]
[1726066497949,0.02807804,55859.0,55854.0,0.179038]
[1726066498404,0.02807804,55859.0,55855.0,0.179034]
[1726066498687,0.02807804,55859.0,55855.0,0.06138388]
[1726066498688,0.02786264,55859.0,55855.0,0.06138388]
[1726066498918,0.02786264,55859.0,55853.0,0.20204]
[1726066499359,0.02786264,55859.0,55853.0,0.023]
[1726066499589,0.02786264,55859.0,55858.0,0.179025]
[1726066500027,0.02786264,55859.0,55858.0,0.895125]
[1726066500278,0.02786264,55859.0,55858.0,0.537075]
[1726066500528,0.02786264,55859.0,55852.0,0.0537158]
[1726066500747,0.02786264,55859.0,55853.0,0.41898318]
[1726066500983,0.1517,55867.0,55857.0,0.358056]
[1726066501240,0.358758,55875.0,55854.0,0.023]
[1726066501241,0.358,55872.0,55854.0,0.023]
[1726066501478,0.358,55872.0,55860.0,0.358037]
[1726066501479,0.1517,55872.0,55860.0,0.358037]
[1726066501718,0.1517,55872.0,55864.0,0.023]
[1726066501949,0.1517,55872.0,55856.0,0.023]
[1726066502188,0.1517,55872.0,55865.0,0.179002]
[1726066502426,0.1517,55872.0,55866.0,0.178999]
[1726066502684,0.1517,55872.0,55869.0,0.178989]
[1726066502913,0.1517,55872.0,55870.0,0.0178989]
[1726066503143,0.1517,55872.0,55856.0,0.4795]
[1726066503375,0.152516,55872.0,55866.0,0.178998]
[1726066503611,0.000816,55872.0,55868.0,0.357985]
[1726066503843,0.000816,55872.0,55871.0,0.53695]
[1726066504548,0.000816,55872.0,55871.0,0.26642996]
[1726066505283,0.001816,55872.0,55871.0,0.178983]
[1726066505519,0.001816,55872.0,55871.0,0.53695]
[1726066505756,0.000816,55872.0,55871.0,0.894917]
[1726066505998,0.000816,55872.0,55871.0,0.57295]
[1726066506237,0.000816,55872.0,55871.0,1.008402]
[1726066506474,0.000816,55872.0,55871.0,0.995402]
[1726066506727,0.000816,55872.0,55871.0,1.353369]
[1726066507203,0.000816,55872.0,55871.0,1.551369]
[1726066507456,0.000816,55872.0,55871.0,1.703969]
[1726066508168,0.000816,55872.0,55871.0,1.717969]
[1726066508608,0.000816,55872.0,55871.0,1.703969]
[1726066508841,0.000816,55872.0,55871.0,1.717969]
[1726066509328,0.000816,55872.0,55871.0,1.703969]
[1726066509564,0.000816,55872.0,55871.0,2.061936]
[1726066509803,0.000816,55872.0,55871.0,2.105936]
[1726066510088,0.000816,55872.0,55871.0,2.16345821]
[1726066510348,6e-07,55876.0,55875.0,0.58495187]
[1726066510584,6e-07,55876.0,55875.0,2.44695956]
[1726066510856,0.000816,55888.0,55887.0,1.275524]
[1726066511112,0.000816,55888.0,55887.0,2.37466987]
[1726066511610,0.000816,55888.0,55887.0,0.2108]
[1726066511831,0.000816,55888.0,55879.0,0.380913]
[1726066512067,0.000816,55888.0,55881.0,0.023]
[1726066512318,0.000816,55888.0,55882.0,0.178947]
[1726066512565,0.000816,55888.0,55887.0,0.014]
[1726066512817,0.201316,55888.0,55887.0,0.014]
[1726066513367,0.201316,55888.0,55881.0,0.17895]
[1726066513626,0.201316,55888.0,55881.0,0.0559865]
[1726066513857,0.201316,55888.0,55876.0,0.023]
[1726066513858,0.1584,55887.0,55876.0,0.023]
[1726066514085,0.1584,55887.0,55876.0,0.380934]
[1726066514549,0.1584,55887.0,55884.0,0.178941]
[1726066514775,0.1584,55887.0,55881.0,0.01]
[1726066515007,0.00447342,55886.0,55881.0,0.01]
[1726066515241,0.00447342,55886.0,55871.0,0.2056]
[1726066515242,0.178953,55881.0,55871.0,0.2056]
[1726066515473,0.178942,55884.0,55876.0,0.004]
[1726066515727,0.357872,55886.0,55876.0,0.004]
[1726066515728,0.17894,55885.0,55876.0,0.004]
[1726066515967,0.357872,55886.0,55872.0,0.03662]
[1726066515968,0.178942,55884.0,55872.0,0.03662]
[1726066516234,0.178942,55884.0,55867.0,0.03]
[1726066516235,0.178942,55884.0,55865.0,0.2056]
[1726066516236,0.2005,55880.0,55865.0,0.2056]
[1726066516467,0.2005,55880.0,55862.0,0.17901]
[1726066516468,0.1526,55873.0,55862.0,0.17901]
[1726066516712,0.1526,55873.0,55859.0,0.001632]
[1726066516713,0.31398187,55870.0,55859.0,0.001632]
[1726066516945,0.1526,55873.0,55859.0,0.001632]
[1726066516946,0.1526,55873.0,55859.0,0.0581619]
[1726066517181,0.1526,55873.0,55861.0,0.35803]
[1726066517420,0.1526,55873.0,55869.0,0.178989]
[1726066517653,0.1526,55873.0,55862.0,0.179011]
[1726066517654,0.331578,55873.0,55862.0,0.179011]
[1726066517879,0.1526,55873.0,55862.0,0.09532599]
[1726066518120,0.1526,55873.0,55859.0,0.0581619]
[1726066518121,0.1526,55873.0,55872.0,0.002]
[1726066518344,0.3559,55886.0,55872.0,0.002]
[1726066518591,0.3559,55886.0,55870.0,0.2059]
[1726066518592,0.713776,55886.0,55871.0,0.023]
[1726066518836,0.178941,55885.0,55874.0,0.178973]
[1726066519074,0.534836,55886.0,55875.0,0.2349631]
[1726066519322,0.534836,55886.0,55877.0,0.023]
[1726066519323,0.3559,55886.0,55877.0,0.023]
[1726066519576,0.1553,55889.0,55877.0,0.023]
[1726066519809,0.1553,55889.0,55876.0,0.357935]
[1726066520060,0.1553,55889.0,55878.0,0.023]
[1726066520061,0.178935,55887.0,55878.0,0.023]
[1726066520318,0.178935,55887.0,55870.0,0.2059]
[1726066520320,0.31398187,55886.0,55870.0,0.2059]
[1726066520548,0.31398187,55886.0,55870.0,0.563871]
[1726066520549,0.357878,55885.0,55870.0,0.563871]
[1726066520776,0.17895,55882.0,55871.0,0.178983]
[1726066521017,0.17895,55882.0,55871.0,0.179983]
[1726066521239,0.178955,55880.0,55871.0,0.001]
[1726066521734,0.178955,55880.0,55864.0,0.358009]
[1726066521735,0.2059,55877.0,55859.0,0.001632]
[1726066521965,0.00447442,55879.0,55859.0,0.001632]
[1726066521966,0.31398187,55861.0,55859.0,0.001632]
[1726066522212,0.179018,55860.0,55859.0,0.001632]
[1726066522459,0.3574,55868.0,55859.0,0.001632]
[1726066522689,0.00447526,55867.0,55859.0,0.001632]
[1726066523165,0.67138187,55868.0,55859.0,0.001632]
[1726066523405,0.179018,55860.0,55859.0,0.001632]
[1726066523630,1.25766823,55860.0,55859.0,0.001632]
[1726066524125,0.3581,55860.0,55859.0,0.001632]
[1726066524383,0.895155,55860.0,55859.0,0.001632]
[1726066524628,1.253192,55860.0,55859.0,0.001632]
[1726066525099,1.256192,55860.0,55859.0,0.001632]
[1726066525325,1.612229,55860.0,55859.0,0.001632]
[1726066525573,1.253192,55860.0,55859.0,0.001632]
[1726066526048,0.538118,55860.0,55859.0,0.001632]
[1726066528713,0.1499,55866.0,55860.0,0.179018]
[1726066528933,0.343,55867.0,55860.0,0.018465]
[1726066529173,0.179018,55860.0,55859.0,0.005632]
[1726066529410,0.00447563,55864.0,55859.0,0.001632]
[1726066529871,0.179007,55864.0,55859.0,0.001632]
[1726066530096,0.179013,55862.0,55859.0,0.001632]
[1726066530347,0.179018,55860.0,55859.0,0.001632]
[1726066530565,0.537055,55860.0,55859.0,0.001632]
[1726066531025,0.895092,55860.0,55859.0,0.002632]
[1726066531265,0.697055,55860.0,55859.0,0.002632]
[1726066531500,1.246092,55860.0,55859.0,0.002632]
[1726066531746,1.636129,55860.0,55859.0,0.002632]
[1726066531968,1.636129,55860.0,55859.0,0.001632]
[1726066532720,0.895335,55845.0,55844.0,0.001628]
[1726066532961,1.20931687,55845.0,55844.0,0.001628]
[1726066533229,1.91495087,55845.0,55844.0,0.001628]
[1726066533465,1.94495087,55845.0,55844.0,0.001628]
[1726066533955,1.91495087,55845.0,55844.0,0.001628]
[1726066534443,1.94695087,55845.0,55844.0,0.001628]
[1726066534679,0.537373,55827.0,55826.0,0.0031596]
[1726066534929,0.726353,55842.0,55826.0,0.0031596]
[1726066534930,0.31398187,55834.0,55828.0,0.52535264]
[1726066535177,0.179111,55831.0,55828.0,0.05285122]
[1726066535425,0.179111,55831.0,55826.0,0.0031596]
[1726066535426,0.179106,55833.0,55826.0,0.0031596]
[1726066535672,0.179122,55828.0,55826.0,0.0031596]
[1726066536022,0.698973,55827.0,55826.0,0.0031596]
[1726066536245,0.340724,55827.0,55826.0,0.0031596]
[1726066536516,0.698973,55827.0,55826.0,0.0031596]
[1726066536987,0.340724,55827.0,55826.0,0.0031596]
[1726066537211,0.537373,55827.0,55826.0,0.0031596]
[1726066537427,0.31398187,55829.0,55826.0,0.0031596]
[1726066537671,0.179124,55827.0,55826.0,0.0031596]
[1726066537917,0.31398187,55829.0,55826.0,0.0031596]
[1726066538153,0.001,55831.0,55826.0,0.0031596]
[1726066538404,0.1791,55835.0,55827.0,0.1878]
[1726066538627,0.358198,55835.0,55827.0,0.1878]
[1726066538865,0.179107,55833.0,55827.0,0.1878]
[1726066539084,0.179099,55835.0,55827.0,0.1878]
[1726066539310,0.179103,55834.0,55827.0,0.1878]
[1726066539551,0.001,55831.0,55827.0,0.1878]
[1726066539842,0.001,55831.0,55830.0,0.560345]
[1726066540081,0.358143,55844.0,55831.0,0.023]
[1726066540308,0.534977,55842.0,55832.0,0.179107]
[1726066540549,0.534977,55842.0,55831.0,0.023]
[1726066540550,0.17909,55838.0,55831.0,0.023]
[1726066540771,0.358163,55841.0,55829.0,0.0589]
[1726066541007,0.3559,55842.0,55833.0,0.35821]
[1726066541241,0.3559,55842.0,55832.0,0.0359]
[1726066541242,0.179082,55841.0,55832.0,0.0359]
[1726066541482,0.714055,55842.0,55832.0,0.0359]
[1726066541729,0.179081,55841.0,55832.0,0.0359]
[1726066541952,0.3559,55842.0,55836.0,0.214993]
[1726066542203,0.3559,55842.0,55834.0,0.023]
[1726066542437,0.179081,55841.0,55834.0,0.023]
[1726066542670,0.3559,55842.0,55834.0,0.238]
[1726066542907,0.3559,55842.0,55834.0,0.023]
[1726066543133,0.3559,55842.0,55837.0,0.023]
[1726066543356,0.31395416,55850.0,55838.0,0.179087]
[1726066543357,0.179059,55848.0,55838.0,0.179087]
[1726066543651,0.179061,55847.0,55839.0,0.0359]
[1726066543878,0.358108,55849.0,55837.0,0.023]
[1726066543879,0.358128,55846.0,55837.0,0.023]
[1726066544095,0.179069,55845.0,55837.0,0.023]
[1726066544322,0.358127,55846.0,55837.0,0.023]
[1726066544543,0.31843087,55845.0,55836.0,0.006]
[1726066544776,0.358127,55846.0,55826.0,0.0047916]
[1726066544777,0.358122,55847.0,55831.0,0.1623]
[1726066545001,0.442,55856.0,55831.0,0.1623]
[1726066545002,0.358113,55849.0,55836.0,0.023]
[1726066545236,0.001,55842.0,55836.0,0.023]
[1726066545459,0.001,55842.0,55834.0,0.023]
[1726066545680,0.179068,55845.0,55835.0,0.358196]
[1726066545905,0.179073,55843.0,55836.0,0.026]
[1726066546160,0.358098,55851.0,55836.0,0.003]
[1726066546161,0.179092,55837.0,55836.0,0.003]
[1726066546386,0.179089,55838.0,55836.0,0.003]
[1726066546625,0.35816,55841.0,55833.0,0.2007]
[1726066546626,0.179092,55837.0,55833.0,0.2007]
[1726066546854,0.358184,55838.0,55833.0,0.2007]
[1726066547079,0.179101,55835.0,55829.0,0.0359]
[1726066547301,0.179092,55837.0,55829.0,0.0359]
[1726066547523,0.358167,55840.0,55829.0,0.215017]
[1726066547754,0.358167,55840.0,55829.0,0.0359]
[1726066547755,0.179109,55832.0,55829.0,0.0359]
[1726066547975,0.1542,55838.0,55829.0,0.0359]
[1726066548199,0.179099,55835.0,55829.0,0.0359]
[1726066548414,0.179097,55836.0,55834.0,0.003]
[1726066548630,0.1542,55838.0,55834.0,0.003]
[1726066548881,0.86360416,55843.0,55829.0,0.0359]
[1726066548882,0.31395416,55843.0,55830.0,0.358229]
[1726066549097,0.31395416,55843.0,55829.0,0.01]
[1726066549098,0.31395416,55833.0,55829.0,0.01]
[1726066549331,0.179112,55831.0,55829.0,0.01]
[1726066549797,0.179124,55827.0,55826.0,0.0047916]
[1726066550033,1.20957616,55827.0,55826.0,0.0047916]
[1726066550256,1.72202516,55827.0,55826.0,0.0047916]
[1726066550499,2.08227416,55827.0,55826.0,0.0047916]
[1726066550749,2.08227416,55827.0,55819.0,0.0021166]
[1726066550750,1.20968916,55820.0,55819.0,0.0021166]
[1726066550987,1.92778316,55820.0,55819.0,0.0021166]
[1726066551495,1.92978316,55820.0,55819.0,0.0021166]
[1726066551746,1.92778316,55820.0,55819.0,0.0021166]
[1726066551961,1.72218316,55820.0,55819.0,0.0021166]
[1726066552205,1.72318316,55820.0,55819.0,0.0021166]
[1726066552424,1.36488916,55820.0,55819.0,0.0021166]
[1726066552651,1.36488916,55820.0,55819.0,0.0037486]
[1726066552652,1.36388916,55820.0,55819.0,0.0037486]
[1726066552887,0.179147,55820.0,55819.0,0.0037486]
[1726066553110,1.21068916,55820.0,55819.0,0.0037486]
[1726066553370,1.76928316,55820.0,55819.0,0.0037486]
[1726066553595,0.49410116,55820.0,55819.0,0.0037486]